[Event "7th Leer Open-B 2024"]
[Site "Leer"]
[Date "2024.10.31"]
[Round "1.1"]
[White "Wibmer, Michael"]
[Black "Goerzen, Lina"]
[Result "1-0"]
[ECO "B76"]
[WhiteElo "1831"]
[BlackElo "1667"]
[Annotator "NA RC"]
[PlyCount "49"]
[EventDate "2024.10.14"]
[EventType "swiss"]
[EventCountry "GER"]
[SourceTitle "playchess.com"]
[Source "ChessBase"]
[SourceQuality "1"]
[TimeControl "40/5400+30:900+30"]

1. e4 {[%emt 0:00:05]} c5 {[%emt 0:00:14]} 2. Nf3 {[%emt 0:00:05]} d6 {[%emt 0:00:16]} 3. d4 {[%emt 0:00:07]} cxd4 {[%emt 0:00:08]} 4. Nxd4 {[%emt 0:00:06]} Nf6 {[%emt 0:00:20]} 5. Nc3 {[%emt 0:00:09]} g6 {[%emt 0:00:14]} 6. Be3 {[%emt 0:00:24]} Bg7 {[%emt 0:00:30]} 7. f3 {[%emt 0:00:08]} O-O {[%emt 0:00:31]} 8. Qd2 {[%emt 0:00:26]} Nc6 {[%emt 0:00:23]} 9. g4 {[%emt 0:01:04]} Be6 {[%emt 0:00:41]} 10. Nxe6 {[%emt 0:03:04]} fxe6 {[%emt 0:00:08]} 11. O-O-O {[%emt 0:00:52]} Rc8 {[%emt 0:04:05]} 12. h4 {[%emt 0:02:53]} Ne5 {[%emt 0:13:24]} 13. Be2 {[%emt 0:03:02]} Nfd7 {[%emt 0:07:08]} 14. Bh6 {[%emt 0:22:00]} Nxf3 {[%emt 0:12:03]} 15. Bxf3 {[%emt 0:02:16]} Rxf3 {[%emt 0:04:04]} 16. Bxg7 {[%emt 0:00:28]} Kxg7 {[%emt 0:00:15]} 17. h5 {[%emt 0:09:46]} Qf8 {[%emt 0:08:38]} 18. Ne2 {[%emt 0:06:15]} e5 {[%emt 0:06:48]} 19. hxg6 {[%emt 0:02:03]} hxg6 {[%emt 0:00:18]} 20. Kb1 {[%emt 0:09:26]} Rf2 {[%emt 0:02:23]} 21. Qe3 {[%emt 0:10:09]} Nc5 {[%emt 0:04:27]} 22. Nc3 {[%emt 0:03:53]} Qf4 {[%emt 0:02:50]} 23. Qh3 {[%emt 0:01:49]} Qf7 {[%emt 0:16:54]} 24. Qh6+ {[%emt 0:03:33]} Kf6 {[%emt 0:00:06]} 25. g5+ {[%emt 0:18:57]} 1-0

[Event "7th Leer Open-B 2024"]
[Site "Leer"]
[Date "2024.10.31"]
[Round "1.1"]
[White "Kutz, Paul Matti"]
[Black "Sparding, Norbert"]
[Result "1-0"]
[ECO "C47"]
[WhiteElo "1741"]
[BlackElo "1557"]
[Annotator "NA RC"]
[PlyCount "47"]
[EventDate "2024.10.14"]
[EventType "swiss"]
[EventCountry "GER"]
[SourceTitle "playchess.com"]
[Source "ChessBase"]
[SourceQuality "1"]
[TimeControl "40/5400+30:900+30"]

1. e4 {[%emt 0:00:02]} Nf6 {[%emt 0:00:15]} 2. Nc3 {[%emt 0:00:24]} e5 {[%emt 0:00:30]} 3. Nf3 {[%emt 0:00:11]} Nc6 {[%emt 0:00:20]} 4. d4 {[%emt 0:00:12]} exd4 {[%emt 0:00:14]} 5. Nxd4 {[%emt 0:00:10]} Bb4 {[%emt 0:01:08]} 6. Nxc6 {[%emt 0:00:42]} bxc6 {[%emt 0:00:09]} 7. Bd3 {[%emt 0:00:22]} a5 {[%emt 0:00:38]} 8. Bg5 {[%emt 0:01:15]} h6 {[%emt 0:01:31]} 9. Bh4 {[%emt 0:02:04]} d6 {[%emt 0:00:40]} 10. O-O {[%emt 0:04:45]} Bxc3 {[%emt 0:00:13]} 11. bxc3 {[%emt 0:00:11]} O-O {[%emt 0:02:42]} 12. h3 {[%emt 0:02:28]} Re8 {[%emt 0:01:00]} 13. Qf3 {[%emt 0:03:03]} g5 {[%emt 0:00:17]} 14. Bg3 {[%emt 0:01:03]} Ba6 {[%emt 0:00:05]} 15. Rfe1 {[%emt 0:01:39]} c5 {[%emt 0:00:34]} 16. e5 {[%emt 0:01:09]} Nd7 {[%emt 0:01:13]} 17. Be4 {[%emt 0:01:00]} Rb8 {[%emt 0:00:20]} 18. Qf5 {[%emt 0:01:19]} Nxe5 {[%emt 0:01:16]} 19. Qh7+ {[%emt 0:01:05]} Kf8 {[%emt 0:00:05]} 20. Qxh6+ {[%emt 0:00:14]} Ke7 {[%emt 0:00:16]} 21. Qxg5+ {[%emt 0:02:46]} Kd7 {[%emt 0:02:31]} 22. Qf5+ {[%emt 0:00:33]} Re6 {[%emt 0:00:23]} 23. Bxe5 {[%emt 1:15:23]} dxe5 {[%emt 0:00:50]} 24. Rad1+ {[%emt 0:00:00]} 1-0

[Event "7th Leer Open-B 2024"]
[Site "Leer"]
[Date "2024.10.31"]
[Round "1.1"]
[White "Nafati, Meryem"]
[Black "Drozd, Maciej"]
[Result "*"]
[ECO "C47"]
[WhiteElo "1559"]
[BlackElo "1752"]
[Annotator "NA RC"]
[PlyCount "41"]
[EventDate "2024.10.14"]
[EventType "swiss"]
[EventCountry "GER"]
[SourceTitle "playchess.com"]
[Source "ChessBase"]
[SourceQuality "1"]
[TimeControl "40/5400+30:900+30"]

1. e4 {[%emt 0:00:02]} Nf6 {[%emt 0:00:15]} 2. Nc3 {[%emt 0:00:24]} e5 {[%emt 0:00:30]} 3. Nf3 {[%emt 0:00:11]} Nc6 {[%emt 0:00:20]} 4. d4 {[%emt 0:00:12]} exd4 {[%emt 0:00:14]} 5. Nxd4 {[%emt 0:00:10]} Bb4 {[%emt 0:01:08]} 6. Nxc6 {[%emt 0:00:42]} bxc6 {[%emt 0:00:09]} 7. Bd3 {[%emt 0:00:22]} a5 {[%emt 0:00:38]} 8. Bg5 {[%emt 0:01:15]} h6 {[%emt 0:01:31]} 9. Bh4 {[%emt 0:02:04]} d6 {[%emt 0:00:40]} 10. O-O {[%emt 0:04:45]} Bxc3 {[%emt 0:00:13]} 11. bxc3 {[%emt 0:00:11]} O-O {[%emt 0:02:42]} 12. h3 {[%emt 0:02:28]} Re8 {[%emt 0:01:00]} 13. Qf3 {[%emt 0:03:03]} g5 {[%emt 0:00:17]} 14. Bg3 {[%emt 0:01:03]} Ba6 {[%emt 0:00:05]} 15. Rfe1 {[%emt 0:01:39]} c5 {[%emt 0:00:34]} 16. e5 {[%emt 0:01:09]} Nd7 {[%emt 0:01:13]} 17. Be4 {[%emt 0:01:00]} Rb8 {[%emt 0:00:20]} 18. Qf5 {[%emt 0:01:19]} Nxe5 {[%emt 0:01:16]} 19. Qh7+ {[%emt 0:01:05]} Kf8 {[%emt 0:00:05]} 20. Qxh6+ {[%emt 0:00:14]} Ke7 {[%emt 0:00:16]} 21. Qxg5+ {[%emt 0:02:46]} *

[Event "7th Leer Open-B 2024"]
[Site "Leer"]
[Date "2024.10.31"]
[Round "1.2"]
[White "Kutz, Paul Matti"]
[Black "Sparding, Norbert"]
[Result "*"]
[ECO "C54"]
[WhiteElo "1741"]
[BlackElo "1557"]
[Annotator "NA RC"]
[PlyCount "24"]
[EventDate "2024.10.14"]
[EventType "swiss"]
[EventCountry "GER"]
[SourceTitle "playchess.com"]
[Source "ChessBase"]
[SourceQuality "1"]
[TimeControl "40/5400+30:900+30"]

1. e4 {[%emt 0:00:02]} e5 {[%emt 0:00:08]} 2. Nf3 {[%emt 0:00:05]} Nc6 {[%emt 0:00:05]} 3. Bc4 {[%emt 0:00:04]} Bc5 {[%emt 0:00:06]} 4. c3 {[%emt 0:00:06]} Nf6 {[%emt 0:00:30]} 5. d4 {[%emt 0:00:17]} exd4 {[%emt 0:00:04]} 6. O-O {[%emt 0:00:05]} Nxe4 {[%emt 0:01:25]} 7. Re1 {[%emt 0:00:21]} d5 {[%emt 0:00:47]} 8. cxd4 {[%emt 0:00:14]} Bb4 {[%emt 0:03:28]} 9. Bd2 {[%emt 0:03:20]} O-O {[%emt 0:05:36]} 10. Bxb4 {[%emt 0:03:58]} Nxb4 {[%emt 0:01:14]} 11. Qb3 {[%emt 0:01:20]} dxc4 {[%emt 0:07:18]} 12. Qxc4 {[%emt 0:02:13]} Nxf2 {[%emt 0:05:34]} *

[Event "7th Leer Open-B 2024"]
[Site "Leer"]
[Date "2024.10.31"]
[Round "1.2"]
[White "Grabowski, Joshua"]
[Black "Wiege, Matthias"]
[Result "1-0"]
[ECO "B33"]
[WhiteElo "1623"]
[BlackElo "1829"]
[Annotator "NA RC"]
[PlyCount "43"]
[EventDate "2024.10.14"]
[EventType "swiss"]
[EventCountry "GER"]
[SourceTitle "playchess.com"]
[Source "ChessBase"]
[SourceQuality "1"]
[TimeControl "40/5400+30:900+30"]

1. e4 {[%emt 0:00:02]} c5 {[%emt 0:00:06]} 2. Nf3 {[%emt 0:00:04]} Nc6 {[%emt 0:00:06]} 3. d4 {[%emt 0:00:04]} cxd4 {[%emt 0:00:10]} 4. Nxd4 {[%emt 0:00:05]} Nf6 {[%emt 0:00:10]} 5. f3 {[%emt 0:00:44]} e5 {[%emt 0:00:55]} 6. Nb5 {[%emt 0:01:01] B33: Sicilian: Pelikan and Sveshnikov Variations.} d5 {[%emt 0:02:12]} 7. exd5 {[%emt 0:00:47]} Nxd5 {[%emt 0:00:37]} 8. Qxd5 {[%emt 0:01:28]} Qb6 {[%emt 0:15:26]} 9. Nd6+ {[%emt 0:08:15]} Bxd6 {[%emt 0:00:26]} 10. Qxd6 {[%emt 0:00:07]} Bf5 {[%emt 0:04:41]} 11. Bd3 {[%emt 0:06:15]} Rd8 {[%emt 0:01:53]} 12. Qa3 {[%emt 0:00:28]} Bxd3 {[%emt 0:00:35]} 13. cxd3 {[%emt 0:00:20]} Nb4 {[%emt 0:02:28]} 14. Qa4+ {[%emt 0:02:49]} Rd7 {[%emt 0:01:54]} 15. Ke2 {[%emt 0:03:32]} Nxd3 {[%emt 0:01:13]} 16. Be3 {[%emt 0:00:35]} Qxb2+ {[%emt 0:05:23]} 17. Nd2 {[%emt 0:00:15]} Qc3 {[%emt 0:42:03]} 18. Rab1 {[%emt 0:04:11]} (18. Bxa7 $2 Nf4+ $19) 18... Nf4+ {[%emt 0:07:46]} 19. Kf2 {[%emt 0:01:21]} Qd3 {[%emt 0:05:43]} 20. Rhe1 {[%emt 0:01:55]} g5 $2 {[%emt 0:05:45]} (20... O-O 21. Bxf4 (21. Qxa7 Qc2 $14) 21... exf4) 21. Rxb7 {[%emt 0:00:45]} Kd8 {[%emt 0:00:51]} 22. Rb8+ $18 {[%emt 0:00:54]} (22. Qa5+ $142 Ke8 23. Qxe5+ (23. Rxa7 Rxa7 24. Qxa7 Kf8 $18) 23... Ne6 24. Qxh8+ Ke7 25. Bc5+ (25. Rxa7 Rxa7 26. Bxg5+ Kd6 $18) 25... Qd6 26. Bxd6+ Kxd6 27. Ne4+ Kc6 28. Qc3+ (28. Qc8+ Rc7 29. Qe8+ Kd5 30. Rd1+ Ke5 31. Rb5+ Rc5 32. Rxc5+ Kf4 33. Qxf7#) 28... Nc5 29. Qxc5+ (29. Rxd7 Kxd7 30. Qxc5 h6 31. Nf6+ Kd8 32. Re8#) 29... Kxb7 30. Rb1+ Ka8 31. Qc8#) 1-0

[Event "7th Leer Open-B 2024"]
[Site "Leer"]
[Date "2024.10.31"]
[Round "1.2"]
[White "Schenk, Quentin Alexander"]
[Black "Lauenstein, Nico"]
[Result "0-1"]
[ECO "C54"]
[WhiteElo "1554"]
[BlackElo "1732"]
[Annotator "NA RC"]
[PlyCount "30"]
[EventDate "2024.10.14"]
[EventType "swiss"]
[EventCountry "GER"]
[SourceTitle "playchess.com"]
[Source "ChessBase"]
[SourceQuality "1"]
[TimeControl "40/5400+30:900+30"]

1. e4 {[%emt 0:00:02]} e5 {[%emt 0:00:08]} 2. Nf3 {[%emt 0:00:05]} Nc6 {[%emt 0:00:05]} 3. Bc4 {[%emt 0:00:04]} Bc5 {[%emt 0:00:06]} 4. c3 {[%emt 0:00:06]} Nf6 {[%emt 0:00:30]} 5. d4 {[%emt 0:00:17]} exd4 {[%emt 0:00:04]} 6. O-O {[%emt 0:00:05]} Nxe4 {[%emt 0:01:25]} 7. Re1 {[%emt 0:00:21]} d5 {[%emt 0:00:47]} 8. cxd4 {[%emt 0:00:14]} Bb4 {[%emt 0:03:28]} 9. Bd2 {[%emt 0:03:20]} O-O {[%emt 0:05:36]} 10. Bxb4 {[%emt 0:03:58]} Nxb4 {[%emt 0:01:14]} 11. Qb3 {[%emt 0:01:20]} dxc4 {[%emt 0:07:18]} 12. Qxc4 {[%emt 0:02:13]} Nxf2 {[%emt 0:05:34]} 13. Kxf2 {[%emt 0:04:16]} Nd5 {[%emt 0:00:17]} 14. Re5 {[%emt 0:02:32]} Be6 {[%emt 0:00:28]} 15. Nc3 {[%emt 0:10:46]} Ne3 {[%emt 0:05:44]} 0-1

[Event "7th Leer Open-B 2024"]
[Site "Leer"]
[Date "2024.10.31"]
[Round "1.3"]
[White "Wernke-Schmiesing, Sebastian"]
[Black "Junge, Julia Marie"]
[Result "1-0"]
[ECO "E11"]
[WhiteElo "1808"]
[BlackElo "1625"]
[Annotator "NA RC"]
[PlyCount "161"]
[EventDate "2024.10.14"]
[EventType "swiss"]
[EventCountry "GER"]
[SourceTitle "playchess.com"]
[Source "ChessBase"]
[SourceQuality "1"]
[TimeControl "40/5400+30:900+30"]

1. d4 {[%emt 0:00:03]} e6 {[%emt 0:00:12]} 2. c4 {[%emt 0:00:07]} Nf6 {[%emt 0:00:10]} 3. g3 {[%emt 0:00:11]} d5 {[%emt 0:00:30]} 4. Bg2 {[%emt 0:00:17]} Bb4+ {[%emt 0:00:39]} 5. Bd2 {[%emt 0:00:08]} Qe7 {[%emt 0:01:17]} 6. Nf3 {[%emt 0:00:17]} O-O {[%emt 0:03:19]} 7. O-O {[%emt 0:00:13]} Bxd2 {[%emt 0:01:58]} 8. Nbxd2 {[%emt 0:00:22]} c5 {[%emt 0:01:06] E11: Bogo-Indian.} 9. Qc2 {[%emt 0:01:07]} cxd4 {[%emt 0:00:40]} 10. Nxd4 {[%emt 0:00:37]} e5 {[%emt 0:00:52]} 11. Nb5 {[%emt 0:03:53]} a6 {[%emt 0:00:56]} 12. Nc3 {[%emt 0:00:59]} d4 {[%emt 0:02:57]} 13. Nd5 {[%emt 0:03:32]} Nxd5 {[%emt 0:02:38]} 14. cxd5 {[%emt 0:07:20]} Bd7 {[%emt 0:02:56]} 15. Rac1 {[%emt 0:05:08]} f5 {[%emt 0:03:26]} 16. Qb3 {[%emt 0:00:57]} Qf7 {[%emt 0:03:16]} 17. Qxb7 {[%emt 0:02:24]} Bb5 {[%emt 0:01:01]} 18. Rc7 {[%emt 0:06:52]} Nd7 {[%emt 0:01:14]} 19. d6 {[%emt 0:02:30]} e4 {[%emt 0:00:40]} 20. Rfc1 {[%emt 0:05:07]} Rab8 {[%emt 0:00:29]} 21. Qa7 {[%emt 0:01:31]} Ra8 {[%emt 0:00:10]} 22. Qxd4 {[%emt 0:00:54]} Qxa2 {[%emt 0:01:47]} 23. Nxe4 {[%emt 0:57:31]} Rad8 {[%emt 0:04:26]} 24. Nc5 {[%emt 0:00:00]} Nf6 {[%emt 0:02:02]} 25. Ne6 {[%emt 0:00:00]} Qxe6 {[%emt 0:00:26]} 26. Rd1 {[%emt 0:00:00]} Rf7 {[%emt 0:02:26]} 27. Qa7 {[%emt 0:00:00]} Rxc7 {[%emt 0:00:40]} 28. Qxc7 {[%emt 0:00:00]} Qd7 {[%emt 0:00:50]} 29. Qb6 {[%emt 0:00:00]} Ne8 {[%emt 0:03:27]} 30. Bd5+ {[%emt 0:00:00]} Kh8 {[%emt 0:00:00]} 31. Be6 {[%emt 0:00:00]} Qxe6 {[%emt 0:00:00]} 32. Qxd8 {[%emt 0:00:00]} Bd7 {[%emt 0:00:00]} 33. e3 {[%emt 0:00:00]} h6 {[%emt 0:00:00]} 34. Rd4 {[%emt 0:00:00]} Kh7 {[%emt 0:00:00]} 35. b4 {[%emt 0:00:00]} Nf6 {[%emt 0:00:00]} 36. Qc7 {[%emt 0:00:00]} Ng4 {[%emt 0:00:00]} 37. Qc2 {[%emt 0:00:00]} Ne5 {[%emt 0:01:17]} 38. Kg2 {[%emt 0:00:00]} Bc6+ {[%emt 0:00:21]} 39. Kf1 {[%emt 0:00:00]} Nf3 {[%emt 0:01:28]} 40. Rf4 {[%emt 0:00:00]} Nxh2+ {[%emt 0:00:50]} 41. Ke2 {[%emt 0:12:12]} Be4 {[%emt 0:15:49]} 42. Qd2 {[%emt 0:01:33]} Qc4+ {[%emt 0:00:15]} 43. Kd1 {[%emt 0:00:39]} Qf1+ {[%emt 0:02:22]} 44. Qe1 {[%emt 0:00:07]} Bc2+ {[%emt 0:00:12]} 45. Kd2 {[%emt 0:00:28]} Qd3+ {[%emt 0:00:23]} 46. Kc1 {[%emt 0:00:15]} Ba4 {[%emt 0:02:35]} 47. Qd2 {[%emt 0:00:44]} Qf1+ {[%emt 0:07:00]} 48. Kb2 {[%emt 0:00:11]} Qb5 {[%emt 0:00:18]} 49. d7 {[%emt 0:03:57]} Qxd7 {[%emt 0:00:25]} 50. Qxd7 {[%emt 0:00:04]} Bxd7 {[%emt 0:00:06]} 51. Rd4 {[%emt 0:00:20]} Bb5 {[%emt 0:00:18]} 52. e4 {[%emt 0:00:47]} Nf3 {[%emt 0:00:19]} 53. Rd6 {[%emt 0:01:19]} fxe4 {[%emt 0:00:23]} 54. Re6 {[%emt 0:01:02]} Bd3 {[%emt 0:00:24]} 55. Kc3 {[%emt 0:00:24]} Kg8 {[%emt 0:00:33]} 56. Re7 {[%emt 0:01:06]} Kh7 {[%emt 0:00:44]} 57. Re6 {[%emt 0:00:17]} g6 {[%emt 0:00:18]} 58. Re7+ {[%emt 0:00:16]} Kg8 {[%emt 0:00:05]} 59. Rc7 {[%emt 0:00:14]} Ng5 {[%emt 0:00:51]} 60. Rd7 {[%emt 0:00:57]} Bb5 {[%emt 0:00:42]} 61. Rb7 {[%emt 0:00:24]} Nh3 {[%emt 0:01:09]} 62. Rb6 {[%emt 0:00:28]} Kf7 {[%emt 0:00:09]} 63. Kd4 {[%emt 0:00:53]} Nxf2 {[%emt 0:00:10]} 64. Ke3 {[%emt 0:00:11]} Nd3 {[%emt 0:00:17]} 65. Kxe4 {[%emt 0:00:30]} Nxb4 {[%emt 0:00:03]} 66. Ke5 {[%emt 0:00:39]} Nc6+ {[%emt 0:00:08]} 67. Kf4 {[%emt 0:00:39]} Kf6 {[%emt 0:00:14]} 68. Rb7 {[%emt 0:00:22]} g5+ {[%emt 0:00:12]} 69. Ke3 {[%emt 0:01:23]} a5 {[%emt 0:00:39]} 70. Rxb5 {[%emt 0:00:33]} Ke6 {[%emt 0:01:03]} 71. Ke4 {[%emt 0:00:24]} a4 {[%emt 0:00:46]} 72. Rb6 {[%emt 0:00:34]} Kd7 {[%emt 0:01:12]} 73. Ra6 {[%emt 0:00:16]} h5 {[%emt 0:03:26]} 74. Rxa4 {[%emt 0:00:20]} h4 {[%emt 0:00:08]} 75. g4 $18 {[%emt 0:00:40]} Nd8 {[%emt 0:04:30]} 76. Kf5 {[%emt 0:00:24]} h3 {[%emt 0:00:39]} 77. Ra3 {[%emt 0:00:13]} Nf7 {[%emt 0:02:14]} 78. Rxh3 {[%emt 0:00:48]} Ke7 {[%emt 0:02:47]} 79. Rh7 {[%emt 0:01:03]} Ke8 {[%emt 0:00:28]} 80. Kf6 {[%emt 0:00:20]} Nd6 {[%emt 0:00:26]} 81. Ke6 {[%emt 0:00:30]} 1-0

[Event "7th Leer Open-B 2024"]
[Site "Leer"]
[Date "2024.10.31"]
[Round "1.3"]
[White "Nechitaylo, Lev"]
[Black "Kutz, Henning Jasper"]
[Result "1/2-1/2"]
[ECO "C50"]
[WhiteElo "1732"]
[BlackElo "1547"]
[Annotator "NA RC"]
[PlyCount "96"]
[EventDate "2024.10.14"]
[EventType "swiss"]
[EventCountry "GER"]
[SourceTitle "playchess.com"]
[Source "ChessBase"]
[SourceQuality "1"]
[TimeControl "40/5400+30:900+30"]

1. e4 {[%emt 0:00:01]} e5 {[%emt 0:00:05]} 2. Nf3 {[%emt 0:00:03]} Nc6 {[%emt 0:00:09]} 3. Nc3 {[%emt 0:00:08]} Bc5 {[%emt 0:00:19]} 4. Bc4 {[%emt 0:00:07]} Nf6 {[%emt 0:00:10]} 5. d3 {[%emt 0:00:05]} h6 {[%emt 0:00:05]} 6. Be3 {[%emt 0:00:06]} Bxe3 {[%emt 0:00:18]} 7. fxe3 {[%emt 0:00:07]} O-O {[%emt 0:00:21]} 8. O-O {[%emt 0:00:12]} d6 {[%emt 0:00:10]} 9. d4 {[%emt 0:00:39]} exd4 {[%emt 0:00:46]} 10. exd4 {[%emt 0:00:05]} Bg4 {[%emt 0:00:46]} 11. e5 {[%emt 0:00:34]} dxe5 {[%emt 0:00:43]} 12. dxe5 {[%emt 0:00:11]} Qxd1 {[%emt 0:00:54]} 13. Raxd1 {[%emt 0:03:19]} Bxf3 {[%emt 0:00:15]} 14. gxf3 {[%emt 0:02:30]} Nxe5 {[%emt 0:00:29]} 15. Bb3 {[%emt 0:03:50]} Rad8 {[%emt 0:03:30]} 16. Kg2 {[%emt 0:00:32]} Rxd1 {[%emt 0:00:15]} 17. Rxd1 {[%emt 0:00:05]} Nh5 {[%emt 0:01:11]} 18. Nd5 {[%emt 0:00:36]} c6 {[%emt 0:00:45]} 19. Nc3 {[%emt 0:02:51]} Nf4+ {[%emt 0:01:15]} 20. Kf2 {[%emt 0:00:30]} Ne6 {[%emt 0:01:46]} 21. Re1 {[%emt 0:00:23]} Ng6 {[%emt 0:02:19]} 22. Bxe6 {[%emt 0:01:25]} fxe6 {[%emt 0:00:06]} 23. Rxe6 {[%emt 0:00:04]} Nh4 {[%emt 0:02:31]} 24. Re3 {[%emt 0:01:56]} Nf5 {[%emt 0:01:24]} 25. Rd3 {[%emt 0:00:19]} Nh4 {[%emt 0:02:06]} 26. Ne4 {[%emt 0:00:29]} Ng6 {[%emt 0:00:51]} 27. Nd2 {[%emt 0:00:53]} Ne5 {[%emt 0:00:29]} 28. Rb3 {[%emt 0:04:35]} Rf7 {[%emt 0:01:17]} 29. Rc3 {[%emt 0:01:09]} Ng4+ {[%emt 0:01:24]} 30. Kg3 {[%emt 0:00:24]} Ne5 {[%emt 0:01:15]} 31. Nc4 {[%emt 0:00:33]} Nxc4 {[%emt 0:00:13]} 32. Rxc4 {[%emt 0:00:02]} g5 {[%emt 0:01:02]} 33. Rd4 {[%emt 0:00:43]} h5 {[%emt 0:00:57]} 34. Rd6 {[%emt 0:00:14]} Kg7 {[%emt 0:00:47]} 35. Rd3 {[%emt 0:08:12]} Re7 {[%emt 0:02:16]} 36. h4 {[%emt 0:02:08]} gxh4+ {[%emt 0:01:28]} 37. Kxh4 {[%emt 0:00:06]} Kg6 {[%emt 0:00:34]} 38. c4 {[%emt 0:06:53]} Rf7 {[%emt 0:01:08]} 39. b4 {[%emt 0:14:35]} Rf4+ {[%emt 0:00:34]} 40. Kg3 {[%emt 0:00:17]} Rxc4 {[%emt 0:00:30]} 41. a3 {[%emt 0:15:09]} Kg5 {[%emt 0:15:39]} 42. Rd7 {[%emt 0:00:23]} h4+ {[%emt 0:00:29]} 43. Kg2 {[%emt 0:00:20]} Rc2+ {[%emt 0:00:19]} 44. Kh3 {[%emt 0:00:15]} Rc3 {[%emt 0:00:45]} 45. Kg2 {[%emt 0:00:45]} Rxa3 {[%emt 0:00:21]} 46. Rxb7 {[%emt 0:00:05]} a5 {[%emt 0:00:34]} 47. b5 {[%emt 0:05:00]} cxb5 {[%emt 0:03:00]} 48. Rxb5+ {[%emt 0:00:27]} Kf4 {[%emt 0:03:26]} 1/2-1/2

[Event "7th Leer Open-B 2024"]
[Site "Leer"]
[Date "2024.10.31"]
[Round "1.3"]
[White "Schenk, Quentin Alexander"]
[Black "Lauenstein, Nico"]
[Result "*"]
[ECO "C50"]
[WhiteElo "1554"]
[BlackElo "1732"]
[Annotator "NA RC"]
[PlyCount "47"]
[EventDate "2024.10.14"]
[EventType "swiss"]
[EventCountry "GER"]
[SourceTitle "playchess.com"]
[Source "ChessBase"]
[SourceQuality "1"]
[TimeControl "40/5400+30:900+30"]

1. e4 {[%emt 0:00:01]} e5 {[%emt 0:00:05]} 2. Nf3 {[%emt 0:00:03]} Nc6 {[%emt 0:00:09]} 3. Nc3 {[%emt 0:00:08]} Bc5 {[%emt 0:00:19]} 4. Bc4 {[%emt 0:00:07]} Nf6 {[%emt 0:00:10]} 5. d3 {[%emt 0:00:05]} h6 {[%emt 0:00:05]} 6. Be3 {[%emt 0:00:06]} Bxe3 {[%emt 0:00:18]} 7. fxe3 {[%emt 0:00:07]} O-O {[%emt 0:00:21]} 8. O-O {[%emt 0:00:12]} d6 {[%emt 0:00:10]} 9. d4 {[%emt 0:00:39]} exd4 {[%emt 0:00:46]} 10. exd4 {[%emt 0:00:05]} Bg4 {[%emt 0:00:46]} 11. e5 {[%emt 0:00:34]} dxe5 {[%emt 0:00:43]} 12. dxe5 {[%emt 0:00:11]} Qxd1 {[%emt 0:00:54]} 13. Raxd1 {[%emt 0:03:19]} Bxf3 {[%emt 0:00:15]} 14. gxf3 {[%emt 0:02:30]} Nxe5 {[%emt 0:00:29]} 15. Bb3 {[%emt 0:03:50]} Rad8 {[%emt 0:03:30]} 16. Kg2 {[%emt 0:00:32]} Rxd1 {[%emt 0:00:15]} 17. Rxd1 {[%emt 0:00:05]} Nh5 {[%emt 0:01:11]} 18. Nd5 {[%emt 0:00:36]} c6 {[%emt 0:00:45]} 19. Nc3 {[%emt 0:02:51]} Nf4+ {[%emt 0:01:15]} 20. Kf2 {[%emt 0:00:30]} Ne6 {[%emt 0:01:46]} 21. Re1 {[%emt 0:00:23]} Ng6 {[%emt 1:26:48]} 22. Bxe6 {[%emt 0:01:25]} fxe6 {[%emt 0:00:06]} 23. Rxe6 {[%emt 0:00:04]} Nh4 {[%emt 0:02:31]} 24. Re3 {[%emt 0:01:56]} *